fUST/lending_fUST_20260411
["ID","MTS","AMOUNT","RATE_DAILY","PERIOD"]
[420244981,1775851839914,-500.0,0.00015068,2]
[420244982,1775851839935,-500.0,0.00015068,2]
[420244983,1775851839945,-1000.0,0.00015143,2]
[420244984,1775851839954,-244.0,0.00015143,2]
[420244985,1775851839976,-1990.2961948,0.00015205,2]
[420244986,1775851839985,-288.88424515,0.00015342,2]
[420244987,1775851839994,-500.0,0.00015342,2]
[420244988,1775851840004,-500.0,0.00015342,2]
[420244989,1775851840026,-500.0,0.00015342,2]
[420244990,1775851840035,-2721.2247232,0.00015399,2]
[420244991,1775851840045,-2230.315306,0.00015475,2]
[420244992,1775851840062,-5500.0,0.00015483,2]
[420244993,1775851840072,-6197.06764963,0.0001551,2]
[420244994,1775851840082,-2963.09656665,0.00015512,2]
[420244995,1775851840094,-589.87786379,0.00015522,2]
[420244996,1775851840126,-200.19857326,0.00015522,2]
[420244997,1775851840136,-279.70477185,0.00015522,2]
[420244998,1775851840146,-207.83810638,0.00015522,2]
[420244999,1775851840172,-274637.01831988,0.00015523,2]
[420245015,1775851843419,-414.48375,0.00015523,2]
[420245018,1775851846297,-28995.007427,0.00015523,2]
[420249733,1775852402708,223.55,9e-05,2]
[420256727,1775853025011,-258.2775281,9.136e-05,2]
[420256728,1775853025072,-1328.52913057,9.136e-05,2]
[420256729,1775853025087,-258.2775281,9.228e-05,2]
[420256753,1775853032231,-4741.7224719,9.228e-05,2]
[420256754,1775853032257,-551.0,9.321e-05,2]
[420256757,1775853032267,-223.55,9.9e-05,2]
[420256759,1775853032291,-162.10277686,0.0001,2]
[420256761,1775853032319,-255.4362847,0.0001,2]
[420256763,1775853032329,-177.0,0.00011558,2]
[420256764,1775853032337,-204.0,0.00013558,2]
[420256768,1775853032361,-493.502774,0.00013699,2]
[420256771,1775853032383,-1000.0,0.00013699,2]
[420256773,1775853032394,-309.740522,0.00014762,2]
[420256775,1775853032406,-152.0,0.00014975,7]
[420256777,1775853032424,-152.0,0.00014983,30]
[420256779,1775853032433,-208.334642,0.00015068,2]
[420256781,1775853032445,-160.0,0.00015093,2]
[420256783,1775853032471,-2666.78691003,0.0001522,2]
[420256785,1775853032480,-151.0,0.000153,2]
[420256787,1775853032505,-151.0,0.000153,2]
[420256789,1775853032514,-433.74340006,0.00015319,2]
[420256791,1775853032524,-235.47861139,0.00015319,2]
[420256793,1775853032554,-222.40038836,0.00015319,2]
[420256795,1775853032564,-195.79334029,0.00015319,2]
[420256797,1775853032576,-412.91450465,0.00015319,2]
[420256800,1775853032595,-3474.78786607,0.0001532,2]
[420256838,1775853038649,-36964.8235645,0.0001532,2]
[420256976,1775853046363,-4647.00788634,0.0001532,2]
[420256980,1775853046440,-1253.70656266,0.0001532,2]
[420256988,1775853046542,-119497.42828229,0.0001532,2]
[420257139,1775854238980,-1845.08418677,0.00012142,2]
[420257140,1775854239014,-11.78198281,0.00012265,2]
[420257141,1775854239112,-811.51114452,0.00012265,2]
[420257171,1775854243681,-886.47333456,0.00012265,2]
[420257172,1775854243693,-3290.23353811,0.00012265,2]
[420257173,1775854243707,-1000.0,0.00013699,2]
[420257174,1775854243723,-8992.5553821,0.00013873,2]
[420257175,1775854243733,-177.0,0.00014452,2]
[420257176,1775854243744,-2607.96278656,0.00014919,2]
[420257177,1775854243754,-160.0,0.00015,2]
[420257178,1775854243770,-231.57275506,0.00015019,2]
[420257179,1775854243779,-289.04015326,0.00015019,2]
[420257180,1775854243792,-155.68027186,0.00015019,2]
[420257181,1775854243801,-500.0,0.00015019,2]
[420257182,1775854243811,-500.0,0.00015019,2]
[420257183,1775854243821,-500.0,0.00015019,2]
[420257184,1775854243831,-500.0,0.00015019,2]
[420257185,1775854243840,-500.0,0.00015019,2]
[420257186,1775854243850,-500.0,0.00015019,2]
[420257187,1775854243860,-500.0,0.00015019,2]
[420257188,1775854243869,-500.0,0.00015019,2]
[420257189,1775854243879,-500.0,0.00015019,2]
[420257190,1775854243891,-500.0,0.00015019,2]
[420257191,1775854243900,-180.38454016,0.00015019,2]
[420257192,1775854243910,-500.0,0.00015019,2]
[420257193,1775854243920,-375.84459467,0.00015019,2]
[420257194,1775854243929,-408.99987152,0.00015019,2]
[420257195,1775854243939,-402.20472478,0.00015019,2]
[420257196,1775854243949,-182.60665645,0.00015019,2]
[420257198,1775854244151,-500.0,0.00015019,2]
[420257199,1775854244163,-500.0,0.00015019,2]
[420257200,1775854244174,-500.0,0.00015019,2]
[420257201,1775854244187,-500.0,0.00015019,2]
[420257202,1775854244199,-500.0,0.00015019,2]
[420257203,1775854244211,-158.2489508,0.00015019,2]
[420257204,1775854244352,-341.7510492,0.00015019,2]
[420257205,1775854244370,-500.0,0.00015019,2]
[420257206,1775854244388,-500.0,0.00015019,2]
[420257207,1775854244398,-500.0,0.00015019,2]
[420257208,1775854244409,-500.0,0.00015019,2]
[420257209,1775854244432,-500.0,0.00015019,2]
[420257210,1775854244441,-500.0,0.00015019,2]
[420257211,1775854244455,-500.0,0.00015019,2]
[420257212,1775854244474,-500.0,0.00015019,2]
[420257213,1775854244485,-500.0,0.00015019,2]
[420257214,1775854244498,-500.0,0.00015019,2]
[420257215,1775854244518,-500.0,0.00015019,2]
[420257216,1775854244529,-500.0,0.00015019,2]
[420257217,1775854244547,-500.0,0.00015019,2]
[420257218,1775854244563,-500.0,0.00015019,2]
[420257219,1775854244574,-500.0,0.00015019,2]
[420257220,1775854244593,-2400.108219,0.0001502,2]
[420257221,1775854244605,-3757.00907825,0.0001502,2]
[420257247,1775854249395,-12958.49840869,0.0001502,2]
[420257248,1775854249504,-3831.58027091,0.0001502,2]
[420257249,1775854249520,-7722.27492945,0.0001502,2]
[420257256,1775854843136,-414.48375,0.00011699,2]
[420257257,1775854843218,-201.0325,0.00011699,2]
[420257258,1775854843479,-125.6899719,0.00011699,2]
[420257259,1775854872340,-258.2775281,0.00011699,2]
[420257260,1775854872385,-98.9611938,0.00011817,2]
[420257261,1775854901693,-258.2775281,0.00011817,2]
[420257262,1775854912475,12995.74297669,7.6e-05,2]
[420257263,1775854914874,1504.88817285,8.5e-05,7]
[420257264,1775854930447,648.2291472,5e-05,2]
[420257303,1775855432655,-853.624,0.00010795,2]
[420257305,1775855432675,-4096.98868813,0.00010795,2]
[420257308,1775855432697,-49.38731187,0.00010795,2]
[420257310,1775855432713,-1252.01654783,0.00010904,2]
[420257312,1775855432729,-267.0,0.00010904,2]
[420257314,1775855432739,-362.98345217,0.00011014,2]
[420257316,1775855432754,-177.0,0.00012959,2]
[420257318,1775855432775,-1000.0,0.00013699,2]
[420257320,1775855432784,-470.28841513,0.00013947,2]
[420257322,1775855432803,-903.57341717,0.00013947,2]
[420257324,1775855432820,-824.80597736,0.00013947,2]
[420257388,1775855439039,-150.89311233,0.00013947,2]
[420257389,1775855439052,-971.12958233,0.00014175,2]
[420257390,1775855439235,-2564.28032681,0.00014175,2]
[420257391,1775855439247,-1632.432367,0.00014175,2]
[420257392,1775855439265,-3651.26576701,0.00014275,2]
[420257393,1775855439289,-500.89454322,0.00014374,2]
[420257394,1775855439307,-8193.97426375,0.00014375,2]
[420257395,1775855439337,-31.53108331,0.00014681,2]
[420257396,1775855439378,-341.45948683,0.00014681,2]
[420257397,1775855439426,-1490.47031826,0.00014681,2]
[420257398,1775855439468,-258.117101,0.00014697,2]
[420257399,1775855439517,-500.0,0.00014718,2]
[420257400,1775855439547,-172.33488005,0.00014718,2]
[420257401,1775855439564,-161.48528848,0.00014718,2]
[420257402,1775855439606,-85.88460513,0.00014718,2]
[420257403,1775855439641,-504.09273416,0.00014718,2]
[420257404,1775855439695,-500.0,0.00014718,2]
[420257405,1775855439763,-566.55080359,0.00014718,2]
[420257406,1775855439803,-500.0,0.00014718,2]
[420257407,1775855439847,-500.0,0.00014718,2]
[420257408,1775855439862,-500.0,0.00014718,2]
[420257409,1775855439877,-500.0,0.00014718,2]
[420257410,1775855439900,-2281.96743824,0.00014718,2]
[420257411,1775855439914,-19401.64769066,0.00014719,2]
[420257416,1775855441692,-18342.25,0.00014719,2]
[420257425,1775855443998,-10412.76468092,0.00014719,2]
[420257426,1775855444010,-4574.14783359,0.00014719,2]
[420257440,1775855446715,-500.91489503,0.00014374,2]
[420257442,1775855446727,-5000.0,0.00014572,2]
[420257443,1775855446760,-12525.28020301,0.00014719,2]
[420257444,1775855447601,-782.12145845,0.00014719,2]
[420257446,1775855755719,191.5907433,6.624e-05,2]
[420257488,1775856631900,-5000.0,0.00012895,2]
[420257490,1775856631911,-300.0,0.00013025,2]
[420257492,1775856631936,-300.0,0.00013025,2]
[420257494,1775856631945,-782.0,0.00013025,2]
[420257496,1775856631955,-605.0,0.00013026,2]
[420257498,1775856631972,-151.46382142,0.00013125,2]
[420257500,1775856631981,-1560.0,0.00013671,2]
[420257502,1775856631991,-378.597939,0.00013699,2]
[420257504,1775856632008,-1000.0,0.00013699,2]
[420257506,1775856632022,-1000.0,0.00013699,2]
[420257508,1775856632032,-1996.72150846,0.00013899,2]
[420257510,1775856632048,-501.00847949,0.00013998,2]
[420257512,1775856632061,-2721.86791754,0.00013999,2]
[420257514,1775856632073,-1137.90637542,0.00013999,2]
[420257516,1775856632094,-4597.63310234,0.00013999,2]
[420257517,1775856632113,-8364.97534759,0.00013999,2]
[420257519,1775856632130,-1948.81725711,0.00013999,2]
[420257520,1775856632152,-385.28696678,0.00013999,2]
[420257541,1775856640914,-520.09031662,0.00013859,2]
[420257542,1775856641139,-4479.90968338,0.00013859,2]
[420257543,1775856641156,-14105.22303322,0.00013999,2]
[420257544,1775856641168,-5800.93,0.00013999,2]
[420257545,1775856641177,-268.837,0.00014,2]
[420257546,1775856641190,-10208.3600669,0.00014,2]
[420257547,1775856641207,-500.0,0.00014073,2]
[420257548,1775856641217,-500.0,0.00014099,2]
[420257549,1775856641228,-286221.97230415,0.000141,2]
[420257562,1775856644268,-7040.94383452,0.000141,2]
[420257565,1775856644292,-845.36211525,0.000141,2]
[420257605,1775856646104,-4507.46357376,0.000141,2]
[420257606,1775856646255,-6821.74856409,0.000141,2]
[420257612,1775856938381,-414.48375,0.00012796,2]
[420257616,1775857696863,7000.0,0.0001,10]
[420257664,1775857838539,-5000.0,9.701e-05,2]
[420257665,1775857838564,-300.0,9.799e-05,2]
[420257666,1775857838581,-557.0,9.799e-05,2]
[420257667,1775857838591,-300.0,9.999e-05,2]
[420257668,1775857838624,-300.0,9.999e-05,2]
[420257669,1775857838633,-300.0,9.999e-05,2]
[420257670,1775857838664,-3893.45971736,0.0001,2]
[420257671,1775857838677,-385.84185799,0.0001,2]
[420257672,1775857838688,-300.0,0.00010411,8]
[420257673,1775857838703,-300.0,0.00010999,2]
[420257674,1775857838731,-177.0,0.0001195,2]
[420257675,1775857838743,-50000.0,0.0001195,2]
[420257676,1775857838768,-3910.4768827,0.00012707,2]
[420257677,1775857838778,-213.08152866,0.000128,2]
[420257678,1775857838797,-500.0,0.0001284,2]
[420257679,1775857838815,-250.0,0.0001284,2]
[420257680,1775857838828,-500.0,0.0001284,2]
[420257681,1775857838841,-500.0,0.0001284,2]
[420257682,1775857838854,-500.0,0.0001284,2]
[420257683,1775857838865,-500.0,0.0001284,2]
[420257684,1775857838878,-426.6254509,0.0001284,2]
[420257685,1775857838895,-500.0,0.0001284,2]
[420257686,1775857838905,-367.6112556,0.0001284,2]
[420257688,1775857838915,-500.0,0.0001284,2]
[420257689,1775857838937,-500.0,0.0001284,2]
[420257690,1775857838946,-500.0,0.0001284,2]
[420257691,1775857838955,-298.41875259,0.0001284,2]
[420257693,1775857838980,-500.0,0.0001284,2]
[420257695,1775857838990,-500.0,0.0001284,2]
[420257696,1775857839003,-500.0,0.0001284,2]
[420257698,1775857839023,-400.0,0.0001284,2]
[420257700,1775857839034,-500.0,0.0001284,2]
[420257701,1775857839052,-500.0,0.0001284,2]
[420257703,1775857839067,-500.0,0.0001284,2]
[420257704,1775857839088,-500.0,0.0001284,2]
[420257705,1775857839098,-500.0,0.0001284,2]
[420257706,1775857839111,-583.7908539,0.0001284,2]
[420257707,1775857839130,-500.0,0.0001284,2]
[420257708,1775857839143,-500.0,0.0001284,2]
[420257709,1775857839354,-500.0,0.0001284,2]
[420257710,1775857839375,-500.0,0.0001284,2]
[420257711,1775857839385,-500.0,0.0001284,2]
[420257712,1775857839395,-500.0,0.0001284,2]
[420257713,1775857839410,-500.0,0.0001284,2]
[420257714,1775857839419,-500.0,0.0001284,2]
[420257715,1775857839428,-500.0,0.0001284,2]
[420257716,1775857839436,-462.27226887,0.0001284,2]
[420257717,1775857839452,-500.0,0.0001284,2]
[420257718,1775857839462,-500.0,0.0001284,2]
[420257719,1775857839472,-500.0,0.0001284,2]
[420257720,1775857839492,-500.0,0.0001284,2]
[420257721,1775857839501,-500.0,0.0001284,2]
[420257722,1775857839515,-500.0,0.0001284,2]
[420257723,1775857839529,-500.0,0.0001284,2]
[420257724,1775857839543,-500.0,0.0001284,2]
[420257725,1775857839556,-500.0,0.0001284,2]
[420257726,1775857839576,-500.0,0.0001284,2]
[420257727,1775857839592,-500.0,0.0001284,2]
[420257728,1775857839606,-500.0,0.0001284,2]
[420257729,1775857839627,-500.0,0.0001284,2]
[420257730,1775857839640,-500.0,0.0001284,2]
[420257731,1775857839654,-500.0,0.0001284,2]
[420257732,1775857839673,-500.0,0.0001284,2]
[420257733,1775857839686,-500.0,0.0001284,2]
[420257734,1775857839699,-500.0,0.0001284,2]
[420257735,1775857839718,-500.0,0.0001284,2]
[420257736,1775857839729,-500.0,0.0001284,2]
[420257737,1775857839739,-1322004.12101486,0.00012841,2]
[420257739,1775857840945,-6960.02111348,0.00012841,2]
[420257762,1775857843435,-1407.01445481,0.00012841,2]
[420257763,1775857843453,-381.96055923,0.00012841,2]
[420257764,1775857843467,-50150.0326968,0.00012841,2]
[420257765,1775857843484,-4251.07197513,0.00012841,2]
[420257766,1775857843497,-1661.52715135,0.00012841,2]
[420257770,1775857846439,-2058.57938517,0.00012841,2]
[420257771,1775857846469,-26117.58442058,0.00012841,2]
[420257772,1775857846480,-2329.18508868,0.00012841,2]
[420257773,1775857846617,-3831.59422447,0.00012841,2]
[420257774,1775857846637,-6331.359475,0.00012841,2]
[420258370,1775858425534,-1615.0,0.00010963,2]
[420258384,1775859032162,-4931.1644634,9.817e-05,2]
[420258385,1775859032179,-68.8355366,9.817e-05,2]
[420258386,1775859032198,-3258.05052781,9.916e-05,2]
[420258387,1775859032222,-490.57899851,9.916e-05,2]
[420258524,1775859038714,-450.14164655,9.916e-05,2]
[420258525,1775859038736,-5000.0,0.00010016,2]
[420258526,1775859038758,-562.0,0.00010117,2]
[420258527,1775859038788,-357.50665234,0.0001104,2]
[420258528,1775859038804,-1428.59658277,0.0001104,2]
[420258529,1775859038819,-165.93672455,0.00011621,2]
[420258530,1775859038849,-663.08315132,0.00011621,2]
[420258531,1775859038863,-177.0,0.00012168,2]
[420258532,1775859038898,-187.26453899,0.00012257,2]
[420258533,1775859038913,-245.8,0.00012257,2]
[420258534,1775859038933,-684.44,0.00012329,2]
[420258535,1775859038950,-151.0,0.00012499,2]
[420258536,1775859038981,-151.0,0.00012499,2]
[420258537,1775859038993,-151.0,0.00012499,2]
[420258538,1775859039006,-151.0,0.00012499,2]
[420258539,1775859039018,-151.0,0.00012499,2]
[420258540,1775859039030,-151.0,0.00012499,2]
[420258541,1775859039042,-151.0,0.00012499,2]
[420258542,1775859039061,-151.0,0.00012499,2]
[420258543,1775859039073,-151.0,0.00012499,2]
[420258544,1775859039084,-229.80459918,0.00012499,2]
[420258545,1775859039099,-500.0,0.00012506,2]
[420258546,1775859039112,-333.3186827,0.00012704,2]
[420258547,1775859039122,-455.5452178,0.00012704,2]
[420258548,1775859039134,-500.0,0.0001278,2]
[420258549,1775859039151,-3418.5090062,0.00012839,2]
[420258550,1775859039162,-161.3143201,0.00012839,2]
[420258551,1775859039177,-325.1876519,0.00012898,2]
[420258552,1775859039187,-879.4603811,0.00012941,2]
[420258553,1775859039198,-318.46091014,0.00012973,2]
[420258554,1775859039214,-215.097584,0.00012974,2]
[420258555,1775859039225,-164.0709868,0.00013151,2]
[420258556,1775859039236,-64.36136356,0.00013196,2]
[420258557,1775859042705,-435.63863644,0.00013196,2]
[420258558,1775859042721,-215.097584,0.0001352,2]
[420258559,1775859042743,-325.1311657,0.00013567,2]
[420258560,1775859042753,-257.32787892,0.00013697,2]
[420258561,1775859042763,-303.79854587,0.00013697,2]
[420258562,1775859042796,-196.20145413,0.00013697,2]
[420258563,1775859042808,-407.81519436,0.00013697,2]
[420258577,1775859043455,-92.18480564,0.00013697,2]
[420258578,1775859043466,-287.99819436,0.00013697,2]
[420258579,1775859043549,-145.89493245,0.00013697,2]
[420258580,1775859043559,-500.0,0.00013697,2]
[420258581,1775859043578,-500.0,0.00013697,2]
[420258582,1775859043594,-500.0,0.00013697,2]
[420258583,1775859043605,-500.0,0.00013697,2]
[420258584,1775859043615,-366.92931563,0.00013697,2]
[420258585,1775859043637,-500.0,0.00013697,2]
[420258586,1775859043648,-500.0,0.00013697,2]
[420258587,1775859043662,-500.0,0.00013697,2]
[420258589,1775859043673,-500.0,0.00013697,2]
[420258591,1775859043686,-500.0,0.00013697,2]
[420258593,1775859043699,-500.0,0.00013697,2]
[420258595,1775859043715,-500.0,0.00013697,2]
[420258597,1775859043727,-328.63781563,0.00013697,2]
[420258599,1775859043739,-500.0,0.00013697,2]
[420258601,1775859043759,-500.0,0.00013697,2]
[420258603,1775859043771,-500.0,0.00013697,2]
[420258605,1775859043785,-500.0,0.00013697,2]
[420258607,1775859043799,-500.0,0.00013697,2]
[420258609,1775859043811,-584.31350064,0.00013697,2]
[420258612,1775859043822,-228.25230388,0.00013697,2]
[420258614,1775859043848,-500.0,0.00013697,2]
[420258616,1775859043859,-500.0,0.00013697,2]
[420258618,1775859043872,-500.0,0.00013697,2]
[420258620,1775859043895,-500.0,0.00013697,2]
[420258621,1775859043906,-500.0,0.00013697,2]
[420258622,1775859043925,-183.48004107,0.00013697,2]
[420258623,1775859043940,-316.51995893,0.00013697,2]
[420258624,1775859043950,-172.05029693,0.00013697,2]
[420258626,1775859043978,-250.820863,0.00013697,2]
[420258627,1775859043993,-77.12884007,0.00013697,2]
[420258630,1775859044007,-501.93165862,0.00013698,2]
[420258631,1775859044022,-516.02122516,0.00013698,2]
[420258633,1775859044034,-502.55,0.00013698,2]
[420258634,1775859044050,-144.0699944,0.00013698,2]
[420258650,1775859046592,-3747.98465406,0.00013561,2]
[420258651,1775859046621,-355.9300056,0.00013698,2]
[420258652,1775859046632,-551.18,0.00013698,2]
[420258653,1775859046658,-500.0,0.00013698,2]
[420258654,1775859046669,-500.0,0.00013698,2]
[420258655,1775859046689,-567.49,0.00013698,2]
[420258657,1775859046699,-500.0,0.00013698,2]
[420258659,1775859046710,-500.0,0.00013698,2]
[420258660,1775859046729,-500.0,0.00013698,2]
[420258661,1775859046739,-576.24,0.00013698,2]
[420258662,1775859046750,-500.0,0.00013698,2]
[420258663,1775859046769,-500.0,0.00013698,2]
[420258664,1775859046781,-500.0,0.00013698,2]
[420258665,1775859046803,-500.0,0.00013698,2]
[420258666,1775859046820,-594.26,0.00013698,2]
[420258667,1775859046830,-500.0,0.00013698,2]
[420258668,1775859047078,-503.07110369,0.00013698,2]
[420258669,1775859047112,-575.9,0.00013698,2]
[420258670,1775859047125,-500.0,0.00013698,2]
[420258671,1775859047139,-500.0,0.00013698,2]
[420258672,1775859047175,-500.0,0.00013698,2]
[420258673,1775859047184,-272.68608158,0.00013698,2]
[420258674,1775859047201,-502.53432904,0.00013698,2]
[420258675,1775859047224,-500.82056099,0.00013698,2]
[420258676,1775859047234,-559.02270499,0.00013698,2]
[420258677,1775859047241,-666.79,0.00013698,2]
[420258678,1775859047248,-500.81989108,0.00013698,2]
[420258679,1775859047281,-500.0,0.00013698,2]
[420258680,1775859047291,-500.0,0.00013698,2]
[420258681,1775859047309,-500.0,0.00013698,2]
[420258682,1775859047351,-500.0,0.00013698,2]
[420258683,1775859047361,-500.0,0.00013698,2]
[420258684,1775859047382,-500.0,0.00013698,2]
[420258685,1775859047413,-500.23937945,0.00013698,2]
[420258686,1775859047422,-500.0,0.00013698,2]
[420258687,1775859047449,-500.0,0.00013698,2]
[420258688,1775859047475,-500.32638506,0.00013698,2]
[420258689,1775859047486,-500.31222103,0.00013698,2]
[420258690,1775859047497,-500.0,0.00013698,2]
[420258691,1775859047525,-500.80268656,0.00013698,2]
[420258692,1775859047538,-500.13953759,0.00013698,2]
[420258693,1775859047554,-501.00806524,0.00013698,2]
[420258694,1775859047569,-501.68215269,0.00013698,2]
[420258695,1775859047578,-500.0,0.00013698,2]
[420258696,1775859047605,-518.59,0.00013698,2]
[420258697,1775859047616,-500.0,0.00013698,2]
[420258698,1775859047645,-500.0,0.00013698,2]
[420258699,1775859047656,-500.0,0.00013698,2]
[420258700,1775859047669,-500.0,0.00013698,2]
[420258701,1775859047687,-500.0,0.00013698,2]
[420258702,1775859047701,-500.0,0.00013698,2]
[420258703,1775859047715,-500.0,0.00013698,2]
[420258704,1775859047733,-500.0,0.00013698,2]
[420258705,1775859047746,-500.0,0.00013698,2]
[420258706,1775859047760,-17989.07,0.00013698,2]
[420258707,1775859047775,-394.22507022,0.00013698,2]
[420258727,1775860224006,-1555.96973189,9.302e-05,2]
[420258741,1775860233234,-517.75085583,9.302e-05,2]
[420258744,1775860233272,-1380.56441874,9.302e-05,2]
[420258746,1775860233303,-1545.71499354,9.302e-05,2]
[420258747,1775860233314,-5000.0,9.396e-05,2]
[420258748,1775860233339,-553.0,9.491e-05,2]
[420258749,1775860233349,-188.45977749,0.0001,2]
[420258751,1775860233359,-151.0,0.00010602,2]
[420258754,1775860233389,-300.0,0.00011,2]
[420258756,1775860233398,-177.0,0.00011539,2]
[420258758,1775860233414,-188.45977749,0.00011728,7]
[420258761,1775860233434,-494.499997,0.00013,2]
[420258764,1775860233448,-188.45977749,0.00013455,7]
[420258766,1775860233506,-2466.50848441,0.00013471,2]
[420258769,1775860233530,-455.5661304,0.00013471,2]
[420258770,1775860233548,-500.0,0.00013473,2]
[420258772,1775860233557,-500.0,0.00013473,2]
[420258774,1775860233567,-500.0,0.00013497,2]
[420258775,1775860233597,-500.0,0.00013497,2]
[420258776,1775860233608,-283.84048378,0.00013497,2]
[420258777,1775860233621,-410.9375769,0.00013497,2]
[420258794,1775860238821,-89.0624231,0.00013497,2]
[420258795,1775860238832,-500.0,0.00013497,2]
[420258796,1775860238858,-500.0,0.00013497,2]
[420258797,1775860238867,-500.0,0.00013497,2]
[420258798,1775860238878,-500.0,0.00013497,2]
[420258799,1775860238905,-500.0,0.00013497,2]
[420258800,1775860238914,-500.0,0.00013497,2]
[420258801,1775860238942,-303.13914488,0.00013497,2]
[420258802,1775860238953,-500.0,0.00013497,2]
[420258803,1775860238969,-500.0,0.00013497,2]
[420258804,1775860238989,-500.0,0.00013497,2]
[420258805,1775860239001,-195.28525394,0.00013497,2]
[420258806,1775860239019,-242.3599601,0.00013497,2]
[420258807,1775860239035,-500.0,0.00013497,2]
[420258808,1775860239057,-500.0,0.00013497,2]
[420258809,1775860239087,-500.0,0.00013497,2]
[420258810,1775860239097,-330.78114042,0.00013497,2]
[420258811,1775860239123,-500.0,0.00013497,2]
[420258812,1775860239133,-500.0,0.00013497,2]
[420258813,1775860239142,-500.0,0.00013497,2]
[420258814,1775860239172,-500.0,0.00013497,2]
[420258815,1775860239181,-500.0,0.00013497,2]
[420258816,1775860239191,-500.0,0.00013497,2]
[420258817,1775860239210,-181.5467983,0.00013497,2]
[420258818,1775860239227,-500.0,0.00013497,2]
[420258819,1775860239237,-298.88644687,0.00013497,2]
[420258820,1775860239271,-201.11355313,0.00013497,2]
[420258821,1775860239291,-500.0,0.00013497,2]
[420258822,1775860239302,-23442.66365933,0.00013498,2]
[420258831,1775860241645,-1240.0,0.00013362,2]
[420258832,1775860241669,-2685.40494975,0.00013362,2]
[420258847,1775860245125,-1074.59505025,0.00013362,2]
[420258848,1775860245141,-7215.43831903,0.00013498,2]
[420258850,1775860246814,-147384.14478669,0.00013498,2]
[420258883,1775861433344,-283.624,0.00011256,2]
[420258886,1775861433358,-1605.92221814,0.00011256,2]
[420258888,1775861433370,-441.36114199,0.00011256,2]
[420258961,1775861438012,-2669.09263987,0.00011256,2]
[420258962,1775861438025,-5000.0,0.0001137,2]
[420258963,1775861438038,-582.0,0.00011485,2]
[420258964,1775861438049,-7211.5285781,0.00012199,2]
[420258965,1775861438061,-5000.0,0.00012199,2]
[420258966,1775861438075,-343.01488654,0.00012362,2]
[420258967,1775861438089,-1372.05954617,0.00012362,2]
[420258968,1775861438102,-3087.13397887,0.00012362,2]
[420258969,1775861438116,-5488.23818467,0.00012362,2]
[420258970,1775861438126,-8566.79679138,0.00012362,2]
[420258971,1775861438152,-40117.06078322,0.00012934,2]
[420258972,1775861438162,-196.64,0.00012934,2]
[420258973,1775861438175,-452.46585091,0.00012996,2]
[420258974,1775861438199,-36888.02523892,0.00012998,2]
[420258975,1775861438215,-104437.08801519,0.00012998,2]
[420258976,1775861438234,-431.87462275,0.00012998,2]
[420258977,1775861438258,-1156.01829979,0.00012998,2]
[420258978,1775861438302,-16325.69923307,0.00012998,2]
[420258979,1775861438314,-7634.11459472,0.00012998,2]
[420258980,1775861440591,-1199.0,0.00012998,2]
[420258981,1775861440615,-863.49330725,0.00012998,2]
[420259085,1775861442910,-12573.61627025,0.00012998,2]
[420259086,1775861442928,-2700.0000006,0.00012998,2]
[420259124,1775862043094,-2230.6588697,0.00011318,2]
[420259130,1775862338568,-414.48375,0.00010714,2]
[420259153,1775862631870,-1580.26245559,0.00010388,2]
[420259155,1775862631887,-3419.73754441,0.00010388,2]
[420259157,1775862631897,-567.0,0.00010493,2]
[420259159,1775862631907,-393.91899815,0.00010599,2]
[420259161,1775862631918,-366.04845368,0.00012362,2]
[420259163,1775862631927,-1243.3698412,0.00012362,2]
[420259270,1775862640429,-220.82397352,0.00012362,2]